fUSD/lending_fUSD_20260611
["ID","MTS","AMOUNT","RATE_DAILY","PERIOD"]
[424753636,1781125846000,-500.0,0.00014999,2]
[424753620,1781125846000,-500.0,0.00014999,2]
[424753621,1781125846000,-500.0,0.00014999,2]
[424753619,1781125846000,-281.67279939,0.00014999,2]
[424753622,1781125846000,-500.0,0.00014999,2]
[424753617,1781125846000,-500.0,0.00014999,2]
[424753683,1781125847000,-500.0,0.00014999,2]
[424753681,1781125847000,-500.0,0.00014999,2]
[424753690,1781125847000,-500.0,0.00014999,2]
[424753688,1781125847000,-500.0,0.00014999,2]
[424753679,1781125847000,-500.0,0.00014999,2]
[424753691,1781125847000,-500.0,0.00014999,2]
[424753689,1781125847000,-500.0,0.00014999,2]
[424753682,1781125847000,-500.0,0.00014999,2]
[424753684,1781125847000,-500.0,0.00014999,2]
[424753685,1781125847000,-500.0,0.00014999,2]
[424753692,1781125847000,-500.0,0.00014999,2]
[424753687,1781125847000,-500.0,0.00014999,2]
[424753678,1781125847000,-500.0,0.00014999,2]
[424753686,1781125847000,-500.0,0.00014999,2]
[424753677,1781125847000,-500.0,0.00014999,2]
[424753663,1781125847000,-500.0,0.00014999,2]
[424753676,1781125847000,-500.0,0.00014999,2]
[424753704,1781125847000,-500.0,0.00014999,2]
[424753661,1781125847000,-500.0,0.00014999,2]
[424753662,1781125847000,-500.0,0.00014999,2]
[424753669,1781125847000,-500.0,0.00014999,2]
[424753666,1781125847000,-500.0,0.00014999,2]
[424753665,1781125847000,-500.0,0.00014999,2]
[424753680,1781125847000,-500.0,0.00014999,2]
[424753664,1781125847000,-500.0,0.00014999,2]
[424753671,1781125847000,-500.0,0.00014999,2]
[424753672,1781125847000,-500.0,0.00014999,2]
[424753675,1781125847000,-500.0,0.00014999,2]
[424753670,1781125847000,-500.0,0.00014999,2]
[424753674,1781125847000,-500.0,0.00014999,2]
[424753673,1781125847000,-500.0,0.00014999,2]
[424753668,1781125847000,-500.0,0.00014999,2]
[424753694,1781125847000,-500.0,0.00014999,2]
[424753667,1781125847000,-500.0,0.00014999,2]
[424753693,1781125847000,-500.0,0.00014999,2]
[424753714,1781125847000,-500.0,0.00014999,2]
[424753708,1781125847000,-500.0,0.00014999,2]
[424753715,1781125847000,-500.0,0.00014999,2]
[424753719,1781125847000,-300.0,0.00014999,2]
[424753720,1781125847000,-300.0,0.00014999,2]
[424753723,1781125847000,-300.0,0.00014999,2]
[424753717,1781125847000,-300.0,0.00014999,2]
[424753728,1781125847000,-150.0,0.00015,2]
[424753725,1781125847000,-9211992.02602348,0.00015,2]
[424753727,1781125847000,-400.0,0.00015,2]
[424753729,1781125847000,-4834369.26232554,0.00015,2]
[424753726,1781125847000,-5060.50245357,0.00015,2]
[424753724,1781125847000,-300.0,0.00014999,2]
[424753705,1781125847000,-500.0,0.00014999,2]
[424753722,1781125847000,-300.0,0.00014999,2]
[424753718,1781125847000,-300.0,0.00014999,2]
[424753721,1781125847000,-666.0,0.00014999,2]
[424753711,1781125847000,-500.0,0.00014999,2]
[424753699,1781125847000,-500.0,0.00014999,2]
[424753698,1781125847000,-500.0,0.00014999,2]
[424753713,1781125847000,-500.0,0.00014999,2]
[424753696,1781125847000,-500.0,0.00014999,2]
[424753697,1781125847000,-500.0,0.00014999,2]
[424753695,1781125847000,-500.0,0.00014999,2]
[424753703,1781125847000,-500.0,0.00014999,2]
[424753702,1781125847000,-500.0,0.00014999,2]
[424753700,1781125847000,-500.0,0.00014999,2]
[424753707,1781125847000,-500.0,0.00014999,2]
[424753710,1781125847000,-500.0,0.00014999,2]
[424753706,1781125847000,-500.0,0.00014999,2]
[424753709,1781125847000,-500.0,0.00014999,2]
[424753716,1781125847000,-300.0,0.00014999,2]
[424753712,1781125847000,-500.0,0.00014999,2]
[424753701,1781125847000,-500.0,0.00014999,2]
[424753731,1781125848000,-1093.0,0.00015,2]
[424753730,1781125848000,-1569.04033162,0.00015,2]
[424753740,1781125849000,-1445.32999998,0.00015,2]
[424753739,1781125849000,-7182.11111562,0.00015,2]
[424753737,1781125849000,-792.51463404,0.00011804,2]
[424753738,1781125849000,-1242.22055409,0.00015,2]
[424753732,1781125849000,-792.51463404,0.00011089,2]
[424753734,1781125849000,-85.02926808,0.00011502,2]
[424753735,1781125849000,-577.3143987,0.00011673,2]
[424753733,1781125849000,-707.48536596,0.00011502,2]
[424753741,1781125849000,-5788.52062572,0.00015,2]
[424753736,1781125849000,-215.20023534,0.00011673,2]
[424753743,1781125849000,-17614.77185017,0.00015,2]
[424753749,1781125849000,-498.60857205,0.00014747,2]
[424753744,1781125849000,-316.4671945,0.00011915,2]
[424753746,1781125849000,-328.76785136,0.00012012,2]
[424753747,1781125849000,-463.74678268,0.00012012,2]
[424753745,1781125849000,-476.04743954,0.00011915,2]
[424753751,1781125849000,-379.43999998,0.00015,2]
[424753750,1781125849000,-3603.13001123,0.00015,2]
[424753748,1781125849000,-792.51463404,0.000121,2]
[424753754,1781125849000,-733.75112144,0.00015,2]
[424753752,1781125849000,-792.51463404,0.00012181,2]
[424753753,1781125849000,-322.62401572,0.00015,2]
[424753742,1781125849000,-47638.26990554,0.00015,2]
[424753756,1781125850000,-498.60857204,0.00014824,2]
[424753755,1781125850000,-61811.0,0.00015,2]
[424753758,1781125850000,-1634.79999985,0.00015,2]
[424753757,1781125850000,-94622.04092796,0.00015,2]
[424753760,1781125850000,-792.66,0.00015,2]
[424753761,1781125850000,-16869.13636287,0.00015,2]
[424753762,1781125850000,-7060.17117387,0.00015,2]
[424753759,1781125850000,-35475.25222215,0.00015,2]
[424753797,1781127033000,-2851.015038,0.00012231,2]
[424753787,1781127033000,-215.88118474,0.0001,2]
[424753788,1781127033000,-772.51806845,0.0001,2]
[424753789,1781127033000,-188.95703651,0.0001,2]
[424753790,1781127033000,-280.95783192,0.00010016,2]
[424753795,1781127033000,-438.49701442,0.00011,2]
[424753793,1781127033000,-192.8133024,0.00010034,2]
[424753791,1781127033000,-160.0,0.00010034,2]
[424753792,1781127033000,-23.11046644,0.00010034,2]
[424753794,1781127033000,-178.73172981,0.000109,2]
[424753796,1781127033000,-500.0,0.00011,2]
[424753798,1781127033000,-396.25731701,0.00012293,2]
[424753802,1781127033000,-8827.66,0.00012412,2]
[424753799,1781127033000,-396.25731701,0.00012303,2]
[424753800,1781127033000,-178.73172979,0.00012386,2]
[424753809,1781127033000,-150.99,0.00012673,2]
[424753811,1781127033000,-1849.92141694,0.00012673,2]
[424753808,1781127033000,-4943.28,0.00012673,2]
[424753806,1781127033000,-162.09715989,0.00012567,2]
[424753810,1781127033000,-3534.49957894,0.00012673,2]
[424753804,1781127033000,-162.09715989,0.00012567,2]
[424753803,1781127033000,-1093.16643912,0.00012567,2]
[424753805,1781127033000,-162.09715989,0.00012567,2]
[424753801,1781127033000,-166.66,0.00012412,2]
[424753807,1781127033000,-150.0,0.00012672,2]
[424753819,1781127038000,-737.89697117,0.00012673,2]
[424753820,1781127038000,-948.89821074,0.00012673,2]
[424753822,1781127038000,-299.99,0.00012673,2]
[424753821,1781127038000,-2928.77382221,0.00012673,2]
[424753826,1781127038000,-594.15,0.00012788,2]
[424753829,1781127038000,-150.0,0.00012825,2]
[424753831,1781127038000,-150.0,0.00012837,2]
[424753824,1781127038000,-49.23382221,0.00012673,2]
[424753823,1781127038000,-117.42617779,0.00012673,2]
[424753825,1781127038000,-250.0,0.00012763,2]
[424753833,1781127038000,-341.59,0.00012888,2]
[424753827,1781127038000,-1956.72,0.0001281,2]
[424753832,1781127038000,-304.77,0.00012879,2]
[424753844,1781127038000,-200.0,0.00013699,2]
[424753834,1781127038000,-166.66,0.00012934,2]
[424753843,1781127038000,-180.71198755,0.00013698,2]
[424753845,1781127038000,-475.15185149,0.00013699,2]
[424753835,1781127038000,-613.08,0.00013089,2]
[424753840,1781127038000,-533.08,0.00013386,2]
[424753842,1781127038000,-500.0,0.00013698,2]
[424753837,1781127038000,-166.66,0.00013196,2]
[424753836,1781127038000,-160.4,0.00013121,2]
[424753839,1781127038000,-947.3,0.00013359,2]
[424753838,1781127038000,-1190.89,0.00013204,2]
[424753841,1781127038000,-166.66,0.00013457,2]
[424753888,1781127039000,-1190.89,0.00014855,2]
[424753881,1781127039000,-1472.55704812,0.000148,2]
[424753899,1781127039000,-621.46968084,0.00014899,2]
[424753885,1781127039000,-1158.1736649,0.00014836,2]
[424753890,1781127039000,-250.0,0.00014899,2]
[424753883,1781127039000,-1500.0,0.000148,5]
[424753897,1781127039000,-621.46968084,0.00014899,2]
[424753905,1781127039000,-621.46968084,0.00014899,2]
[424753892,1781127039000,-2000.0,0.00014899,2]
[424753903,1781127039000,-621.46968084,0.00014899,2]
[424753901,1781127039000,-621.46968084,0.00014899,2]
[424753907,1781127039000,-621.46968084,0.00014899,2]
[424753910,1781127039000,-621.46968084,0.00014899,2]
[424753912,1781127039000,-621.46968084,0.00014899,2]
[424753879,1781127039000,-3000.0,0.000148,2]
[424753894,1781127039000,-621.46968084,0.00014899,2]
[424753877,1781127039000,-2500.0,0.00014799,2]
[424753849,1781127039000,-188.73,0.00013726,2]
[424753868,1781127039000,-600.0,0.000145,5]
[424753914,1781127039000,-621.46968084,0.00014899,2]
[424753846,1781127039000,-4135.31,0.00013699,2]
[424753847,1781127039000,-9999.99,0.00013699,2]
[424753848,1781127039000,-166.66,0.00013718,2]
[424753852,1781127039000,-3461.39,0.00013868,2]
[424753850,1781127039000,-500.0,0.00013726,2]
[424753851,1781127039000,-255.0,0.00013775,2]
[424753875,1781127039000,-1200.0,0.000147,5]
[424753855,1781127039000,-1593.67151403,0.00014099,2]
[424753853,1781127039000,-178.73172979,0.00013871,2]
[424753859,1781127039000,-582.78,0.000143,2]
[424753870,1781127039000,-1500.0,0.00014568,2]
[424753872,1781127039000,-900.0,0.000146,5]
[424753866,1781127039000,-341.59,0.00014499,2]
[424753864,1781127039000,-300.0,0.000144,5]
[424753862,1781127039000,-928.47736,0.00014398,2]
[424753857,1781127039000,-169.7044706,0.000142,2]
[424753917,1781127039000,-621.46968084,0.00014899,2]
[424753915,1781127039000,-621.46968084,0.00014899,2]
[424753919,1781127039000,-621.46968084,0.00014899,2]
[424753965,1781127039000,-621.46968084,0.00014899,2]
[424753961,1781127039000,-621.46968084,0.00014899,2]
[424753959,1781127039000,-621.46968084,0.00014899,2]
[424753957,1781127039000,-621.46968084,0.00014899,2]
[424753967,1781127039000,-621.46968084,0.00014899,2]
[424753969,1781127039000,-621.46968084,0.00014899,2]
[424753973,1781127039000,-621.46968084,0.00014899,2]
[424753963,1781127039000,-621.46968084,0.00014899,2]
[424753977,1781127039000,-407.97689245,0.00014899,2]
[424753979,1781127039000,-621.46968084,0.00014899,2]
[424753982,1781127039000,-621.46968084,0.00014899,2]
[424753986,1781127039000,-621.46968084,0.00014899,2]
[424753988,1781127039000,-621.46968084,0.00014899,2]
[424753975,1781127039000,-621.46968084,0.00014899,2]
[424753990,1781127039000,-621.46968084,0.00014899,2]
[424753992,1781127039000,-621.46968084,0.00014899,2]
[424753984,1781127039000,-621.46968084,0.00014899,2]
[424753955,1781127039000,-621.46968084,0.00014899,2]
[424753971,1781127039000,-621.46968084,0.00014899,2]
[424753951,1781127039000,-621.46968084,0.00014899,2]
[424753953,1781127039000,-621.46968084,0.00014899,2]
[424753916,1781127039000,-621.46968084,0.00014899,2]
[424753928,1781127039000,-621.46968084,0.00014899,2]
[424753922,1781127039000,-621.46968084,0.00014899,2]
[424753921,1781127039000,-621.46968084,0.00014899,2]
[424753926,1781127039000,-621.46968084,0.00014899,2]
[424753930,1781127039000,-621.46968084,0.00014899,2]
[424753938,1781127039000,-621.46968084,0.00014899,2]
[424753925,1781127039000,-621.46968084,0.00014899,2]
[424753942,1781127039000,-621.46968084,0.00014899,2]
[424753932,1781127039000,-621.46968084,0.00014899,2]
[424753934,1781127039000,-621.46968084,0.00014899,2]
[424753936,1781127039000,-621.46968084,0.00014899,2]
[424753944,1781127039000,-621.46968084,0.00014899,2]
[424753946,1781127039000,-621.46968084,0.00014899,2]
[424753949,1781127039000,-621.46968084,0.00014899,2]
[424753940,1781127039000,-621.46968084,0.00014899,2]
[424754114,1781127040000,-289.86791566,0.00014999,2]
[424754130,1781127040000,-500.0,0.00014999,2]
[424754116,1781127040000,-500.0,0.00014999,2]
[424754118,1781127040000,-500.0,0.00014999,2]
[424754123,1781127040000,-500.0,0.00014999,2]
[424754132,1781127040000,-500.0,0.00014999,2]
[424754125,1781127040000,-500.0,0.00014999,2]
[424754120,1781127040000,-500.0,0.00014999,2]
[424754156,1781127040000,-500.0,0.00014999,2]
[424754127,1781127040000,-500.0,0.00014999,2]
[424754136,1781127040000,-500.0,0.00014999,2]
[424754138,1781127040000,-500.0,0.00014999,2]
[424754140,1781127040000,-500.0,0.00014999,2]
[424754142,1781127040000,-500.0,0.00014999,2]
[424754144,1781127040000,-500.0,0.00014999,2]
[424754154,1781127040000,-196.76169039,0.00014999,2]
[424754111,1781127040000,-500.0,0.00014999,2]
[424754134,1781127040000,-500.0,0.00014999,2]
[424754109,1781127040000,-1000.0,0.00014999,2]
[424754150,1781127040000,-267.12,0.00014999,2]
[424754103,1781127040000,-3602.425,0.00014986,2]
[424754146,1781127040000,-500.0,0.00014999,2]
[424754070,1781127040000,-605.93293881,0.00014899,2]
[424754081,1781127040000,-33264.4984,0.000149,2]
[424754072,1781127040000,-605.93293881,0.00014899,2]
[424754085,1781127040000,-2000.0,0.000149,2]
[424754074,1781127040000,-605.93293881,0.00014899,2]
[424754079,1781127040000,-1500000.0,0.000149,2]
[424754083,1781127040000,-448172.6237,0.000149,2]
[424754077,1781127040000,-272.37218693,0.00014899,2]
[424754091,1781127040000,-207.94825817,0.00014936,2]
[424754087,1781127040000,-300.0,0.000149,5]
[424754089,1781127040000,-7952.5713006,0.00014936,2]
[424754094,1781127040000,-1570.7728984,0.00014936,2]
[424754096,1781127040000,-455603.6473391,0.00014936,2]
[424754098,1781127040000,-531246.9051753,0.00014936,2]
[424754107,1781127040000,-151.0,0.00014997,2]
[424754101,1781127040000,-433.0,0.00014978,2]
[424754105,1781127040000,-154.883,0.00014986,2]
[424754068,1781127040000,-605.93293881,0.00014899,2]
[424754164,1781127040000,-500.0,0.00014999,2]
[424754149,1781127040000,-500.0,0.00014999,2]
[424754207,1781127040000,-500.0,0.00014999,2]
[424754205,1781127040000,-500.0,0.00014999,2]
[424754209,1781127040000,-500.0,0.00014999,2]
[424754211,1781127040000,-500.0,0.00014999,2]
[424754217,1781127040000,-500.0,0.00014999,2]
[424754215,1781127040000,-500.0,0.00014999,2]
[424754213,1781127040000,-500.0,0.00014999,2]
[424754219,1781127040000,-500.0,0.00014999,2]
[424754222,1781127040000,-500.0,0.00014999,2]
[424754148,1781127040000,-500.0,0.00014999,2]
[424754224,1781127040000,-233.26762464,0.00014999,2]
[424754251,1781127040000,-18854.93765589,0.00015,2]
[424754254,1781127040000,-570.72982862,0.00015,2]
[424754252,1781127040000,-260.47586794,0.00015,2]
[424754258,1781127040000,-1483.57598021,0.00015,2]
[424754256,1781127040000,-364.65883383,0.00015,2]
[424754260,1781127040000,-5333.6184774,0.00015,2]
[424754197,1781127040000,-500.0,0.00014999,2]
[424754195,1781127040000,-500.0,0.00014999,2]
[424754226,1781127040000,-1728331.11723782,0.00015,2]
[424754203,1781127040000,-500.0,0.00014999,2]
[424754158,1781127040000,-500.0,0.00014999,2]
[424754160,1781127040000,-500.0,0.00014999,2]
[424754162,1781127040000,-500.0,0.00014999,2]
[424754152,1781127040000,-250.0,0.00014999,2]
[424754167,1781127040000,-500.0,0.00014999,2]
[424754169,1781127040000,-500.0,0.00014999,2]
[424754171,1781127040000,-500.0,0.00014999,2]
[424754173,1781127040000,-500.0,0.00014999,2]
[424754177,1781127040000,-500.0,0.00014999,2]
[424754179,1781127040000,-500.0,0.00014999,2]
[424754175,1781127040000,-500.0,0.00014999,2]
[424754181,1781127040000,-500.0,0.00014999,2]
[424754184,1781127040000,-500.0,0.00014999,2]
[424754186,1781127040000,-534.91991522,0.00014999,2]
[424754188,1781127040000,-500.0,0.00014999,2]
[424754201,1781127040000,-500.0,0.00014999,2]
[424754190,1781127040000,-500.0,0.00014999,2]
[424754192,1781127040000,-500.0,0.00014999,2]
[424754289,1781127041000,-419.62051996,0.00015,2]
[424754757,1781127044000,-2493.45885002,0.00015,2]
[424754763,1781127044000,-3273.2,0.00015,2]
[424754759,1781127044000,-1847.9643053,0.00015,2]
[424755002,1781127046000,-1863.09959973,0.00015,2]
[424754973,1781127046000,-310.546,0.00015,2]
[424754969,1781127046000,-616.69933997,0.00015,2]
[424754967,1781127046000,-1658.71539995,0.00015,2]
[424754963,1781127046000,-910.07126,0.00015,2]
[424754960,1781127046000,-4269.0259806,0.00015,2]
[424754958,1781127046000,-3416.99999992,0.00015,2]
[424754950,1781127046000,-1469.09908381,0.00015,2]
[424755488,1781128155000,-193.0,0.00012346,2]
[424755487,1781128155000,-171.67852498,0.00012346,2]
[424755505,1781128231000,-224.0,0.00012346,2]
[424755507,1781128231000,-229.0,0.00012346,2]
[424755508,1781128231000,-227.0,0.00012346,2]
[424755506,1781128231000,-221.0,0.00012346,2]
[424755504,1781128231000,-216.4853279,0.00012346,2]
[424755511,1781128231000,-228.0,0.00012346,2]
[424755516,1781128231000,-225.0,0.00012346,2]
[424755518,1781128231000,-229.0,0.00012346,2]
[424755520,1781128231000,-173.3985939,0.00012346,2]
[424755509,1781128231000,-227.0,0.00012346,2]
[424755502,1781128231000,-222.0,0.00012346,2]
[424755519,1781128231000,-48.6014061,0.00012346,2]
[424755500,1781128231000,-225.0,0.00012346,2]
[424755503,1781128231000,-12.5146721,0.00012346,2]
[424755498,1781128231000,-221.0,0.00012346,2]
[424755499,1781128231000,-223.0,0.00012346,2]
[424755497,1781128231000,-228.0,0.00012346,2]
[424755496,1781128231000,-228.0,0.00012346,2]
[424755495,1781128231000,-227.0,0.00012346,2]
[424755492,1781128231000,-299.6653279,0.00012346,2]
[424755494,1781128231000,-185.4853279,0.00012346,2]
[424755493,1781128231000,-42.5146721,0.00012346,2]
[424755501,1781128231000,-224.0,0.00012346,2]
[424755521,1781128231000,-132.15226407,0.00012346,2]
[424755524,1781128231000,-224.0,0.00012346,2]
[424755512,1781128231000,-225.0,0.00012346,2]
[424755553,1781128231000,-858.97,0.00012688,2]
[424755550,1781128231000,-4153.87,0.00012648,2]
[424755564,1781128231000,-150.99,0.00012893,2]
[424755562,1781128231000,-9999.99,0.00012893,2]
[424755548,1781128231000,-3556.17271704,0.00012602,2]
[424755557,1781128231000,-166.66,0.00012836,2]
[424755559,1781128231000,-271.12,0.00012862,2]
[424755555,1781128231000,-152.38,0.0001274,2]
[424755546,1781128231000,-1645.37728296,0.00012602,2]
[424755545,1781128231000,-215.92376884,0.00012597,2]
[424755543,1781128231000,-160.0,0.00012597,2]
[424755541,1781128231000,-271.12,0.00012548,2]
[424755539,1781128231000,-300.54214327,0.00012406,2]
[424755534,1781128231000,-171.02,0.00012366,2]
[424755536,1781128231000,-300.54214327,0.00012405,2]
[424755532,1781128231000,-408.90110781,0.00012348,2]
[424755530,1781128231000,-227.0,0.00012348,2]
[424755528,1781128231000,-222.0,0.00012346,2]
[424755565,1781128231000,-150.0,0.00012956,2]
[424755514,1781128231000,-226.0,0.00012346,2]
[424755513,1781128231000,-227.0,0.00012346,2]
[424755522,1781128231000,-96.84773593,0.00012346,2]
[424755526,1781128231000,-222.0,0.00012346,2]
[424755510,1781128231000,-229.0,0.00012346,2]
[424755567,1781128232000,-21751.5501,0.00013006,2]
[424755569,1781128232000,-62678.39493207,0.00013006,2]
[424755571,1781128232000,-150336.32438315,0.00013006,2]
[424755581,1781128237000,-108.69617652,0.00012485,2]
[424755580,1781128237000,-229.0,0.00012346,2]
[424755582,1781128238000,-10.1280408,0.00012485,2]
[424755993,1781128241000,-6074.34641932,0.00013006,2]
[424755939,1781128241000,-47.83578268,0.00012485,2]
[424755942,1781128241000,-166.66,0.00012748,2]
[424755937,1781128241000,-221.0,0.00012346,2]
[424755944,1781128241000,-4967.6870992,0.00013006,2]
[424756145,1781128242000,-347.22227381,0.00013006,2]
[424756128,1781128242000,-19077.29788323,0.00013006,2]
[424756125,1781128242000,-11032.51277833,0.00013006,2]
[424756146,1781128243000,-785.92833802,0.00013006,2]
[424756147,1781128243000,-1460.23850932,0.00013006,2]
[424756150,1781128245000,-229.0,0.00012346,2]
[424756151,1781128245000,-6973.4284,0.00013006,2]
[424756153,1781128245000,-1867.50000169,0.00013006,2]
[424756152,1781128245000,-688.56,0.00013006,2]
[424756170,1781128267000,151.0,0.000119,2]
[424756171,1781128270000,146.17628572,0.000119,2]
[424756204,1781129212000,-316.20167288,8e-05,2]
[424756203,1781129212000,-150.0,7.76e-05,2]
[424756211,1781129431000,-275.65157898,8e-05,2]
[424756212,1781129431000,-1200.0,8e-05,2]
[424756213,1781129431000,-1266.80418032,8e-05,2]
[424756214,1781129431000,-150.0,8.079e-05,2]
[424756217,1781129431000,-893.6739424,0.00010621,2]
[424756215,1781129431000,-209.04999171,8.16e-05,2]
[424756216,1781129431000,-250.0,9.977e-05,2]
[424756219,1781129431000,-947.3,0.00010835,2]
[424756222,1781129431000,-9999.99,0.00011067,2]
[424756221,1781129431000,-1067.49880522,0.00011067,2]
[424756218,1781129431000,-500.0,0.00010822,2]
[424756220,1781129431000,-166.66,0.00010959,2]
[424756224,1781129431000,-164.25,0.00011128,2]
[424756223,1781129431000,-4135.31,0.00011067,2]
[424756226,1781129431000,-166.66,0.00011166,2]
[424756225,1781129431000,-500.0,0.00011151,2]
[424756227,1781129431000,-166.66,0.00011373,2]
[424756246,1781129432000,-9837.06224742,0.00011814,2]
[424756236,1781129432000,-1563.43,0.00011586,2]
[424756234,1781129432000,-166.66,0.0001158,2]
[424756231,1781129432000,-300.27901609,0.0001153,2]
[424756230,1781129432000,-179.9,0.00011506,2]
[424756232,1781129432000,-323.45517428,0.0001153,2]
[424756229,1781129432000,-238.69,0.00011451,2]
[424756245,1781129432000,-37456.8052178,0.00011814,2]
[424756233,1781129432000,-712.62797836,0.0001153,2]
[424756243,1781129432000,-166.66,0.00011787,2]
[424756228,1781129432000,-866.75,0.00011421,2]
[424756240,1781129432000,-233.11,0.00011716,2]
[424756247,1781129432000,-36002.38528253,0.00011814,2]
[424756248,1781129432000,-300.27901609,0.00011833,2]
[424756250,1781129432000,-250.0,0.00011857,2]
[424756249,1781129432000,-312.68370479,0.00011857,2]
[424756254,1781129432000,-741.54979015,0.00011867,2]
[424756252,1781129432000,-32557.32651674,0.00011867,2]
[424756251,1781129432000,-150.0,0.00011866,2]
[424756238,1781129432000,-150.0,0.00011616,2]
[424756255,1781129432000,-293.48156329,0.00011867,2]
[424756253,1781129432000,-1754.7285621,0.00011867,2]
[424756264,1781129438000,-2438.15312271,0.0001153,2]
[424756263,1781129438000,-1131.52677623,0.0001153,2]
[424756286,1781129439000,-580.07614816,0.00012191,2]
[424756280,1781129439000,-312.68370479,0.00012103,2]
[424756284,1781129439000,-37456.80521777,0.00012157,2]
[424756281,1781129439000,-300.27901609,0.00012137,2]
[424756285,1781129439000,-45839.44752991,0.00012157,2]
[424756283,1781129439000,-305.41199072,0.00012156,2]
[424756279,1781129439000,-323.45517428,0.00012073,2]
[424756278,1781129439000,-170.7,0.00012055,2]
[424756277,1781129439000,-300.27901609,0.00012055,2]
[424756276,1781129439000,-3461.39,0.00012055,2]
[424756269,1781129439000,-323.45517428,0.00011914,2]
[424756272,1781129439000,-305.41199072,0.00011967,2]
[424756273,1781129439000,-7336.31,0.00011967,2]
[424756271,1781129439000,-1000.0,0.00011965,2]
[424756274,1781129439000,-166.66,0.00011995,2]
[424756270,1781129439000,-300.27901609,0.00011959,2]
[424756268,1781129439000,-419710.52307206,0.00011867,2]
[424756267,1781129439000,-500.0,0.00011867,2]
[424756265,1781129439000,-1710.46486339,0.0001153,2]
[424756266,1781129439000,-5189.06649566,0.00011867,2]
[424756282,1781129439000,-5280.14476233,0.00012137,2]
[424756275,1781129439000,-312.68370479,0.00011996,2]
[424756287,1781129439000,-395.50675797,0.00012191,2]
[424756311,1781129439000,-312.68370479,0.0001241,2]
[424756288,1781129439000,-312.68370479,0.00012193,2]
[424756289,1781129439000,-323.45517428,0.00012195,2]
[424756318,1781129439000,-45839.44752991,0.000125,2]
[424756317,1781129439000,-37456.80521777,0.000125,2]
[424756316,1781129439000,-300.27901609,0.00012489,2]
[424756315,1781129439000,-312.68370479,0.00012472,2]
[424756313,1781129439000,-300.27901609,0.0001244,2]
[424756319,1781129439000,-297.35683068,0.000125,2]
[424756314,1781129439000,-323.45517428,0.0001247,2]
[424756310,1781129439000,-5280.14476233,0.00012388,2]
[424756312,1781129439000,-305.41199072,0.00012425,2]
[424756309,1781129439000,-323.45517428,0.00012388,2]
[424756308,1781129439000,-300.27901609,0.00012388,2]
[424756306,1781129439000,-300.27901609,0.00012333,2]
[424756305,1781129439000,-192.06,0.00012329,2]
[424756304,1781129439000,-305.41199072,0.00012302,2]
[424756301,1781129439000,-300.27901609,0.00012273,2]
[424756299,1781129439000,-475.15185149,0.00012273,2]
[424756297,1781129439000,-312.68370479,0.00012273,2]
[424756291,1781129439000,-215.92376884,0.00012218,2]
[424756303,1781129439000,-323.45517428,0.00012297,2]
[424756294,1781129439000,-712.62797836,0.00012231,2]
[424756290,1781129439000,-300.27901609,0.00012208,2]
[424756307,1781129439000,-312.68370479,0.00012344,2]
[424756360,1781129440000,-323.45517428,0.00012744,2]
[424756359,1781129440000,-227.0,0.0001274,2]
[424756353,1781129440000,-313.070719,0.00012731,2]
[424756351,1781129440000,-160.0,0.00012731,2]
[424756355,1781129440000,-160.0,0.00012731,2]
[424756350,1781129440000,-246.226499,0.00012731,2]
[424756349,1781129440000,-305.41199072,0.0001272,2]
[424756346,1781129440000,-224.0,0.00012715,2]